bitfinex/quotes_BTCUSD_20240929
["timestamp","ask_amount","ask_price","bid_price","bid_amount"]
[1727630982588,0.31691418,65999.0,65998.0,0.153175]
[1727630982795,0.20309922,65999.0,65998.0,0.153175]
[1727630983208,0.31691402,65999.0,65998.0,0.153175]
[1727630983665,0.31691386,65999.0,65998.0,0.153175]
[1727630984959,0.20309922,65999.0,65998.0,0.153175]
[1727630985192,0.31691348,65999.0,65998.0,0.153175]
[1727630985627,0.20309922,65999.0,65998.0,0.153175]
[1727630985860,0.31691466,65999.0,65998.0,0.153175]
[1727630986312,0.09532688,65999.0,65998.0,0.153175]
[1727630986519,0.20914273,65999.0,65998.0,0.153175]
[1727630987167,0.09532688,65999.0,65998.0,0.153175]
[1727630988111,0.20914377,65999.0,65998.0,0.153175]
[1727630988474,0.09532688,65999.0,65998.0,0.153175]
[1727630991483,0.27791151,65999.0,65998.0,0.153175]
[1727630991719,0.20914959,65999.0,65998.0,0.153175]
[1727630992157,0.09532688,65999.0,65998.0,0.153175]
[1727630994135,0.09432688,65999.0,65998.0,0.153175]
[1727630994365,0.09732688,65999.0,65998.0,0.154175]
[1727630994785,0.09432688,65999.0,65998.0,0.153175]
[1727630995207,0.09732688,65999.0,65998.0,0.153175]
[1727630995857,0.09432688,65999.0,65998.0,0.153175]
[1727630996261,0.10132688,65999.0,65998.0,0.154175]
[1727630996516,0.09432688,65999.0,65998.0,0.153175]
[1727630996702,0.09832688,65999.0,65998.0,0.153175]
[1727630999611,0.19769223,65999.0,65998.0,0.153175]
[1727631000882,0.21216387,65999.0,65998.0,0.153175]
[1727631003119,0.13178164,65999.0,65998.0,0.153175]
[1727631004012,0.12878164,65999.0,65998.0,0.153175]
[1727631004231,0.10700622,65999.0,65998.0,0.153175]
[1727631004904,0.10300622,65999.0,65998.0,0.153175]
[1727631006254,0.10200622,65999.0,65998.0,0.153175]
[1727631006687,0.10200622,65999.0,65998.0,0.156175]
[1727631007138,0.18238845,65999.0,65998.0,0.156175]
[1727631008894,0.09132688,65999.0,65998.0,0.156175]
[1727631009114,0.18238845,65999.0,65998.0,0.156175]
[1727631010051,0.22217659,65999.0,65998.0,0.156175]
[1727631010934,0.20613927,65999.0,65998.0,0.156175]
[1727631012590,0.18237307,65999.0,65998.0,0.156175]
[1727631017655,0.20612386,65999.0,65998.0,0.156175]
[1727631019359,0.20612415,65999.0,65998.0,0.156175]
[1727631022336,0.18237336,65999.0,65998.0,0.156175]
[1727631025736,0.20612415,65999.0,65998.0,0.156175]
[1727631026190,0.11507767,65999.0,65998.0,0.156175]
[1727631028806,0.09132688,65999.0,65998.0,0.156175]
[1727631031250,0.20513974,65999.0,65998.0,0.156175]
[1727631031711,0.01094465,65999.0,65998.0,0.156175]
[1727631032730,0.05646953,65999.0,65998.0,0.249875]
[1727631032985,0.000828,65999.0,65998.0,0.249875]
[1727631033239,0.01103911,65999.0,65998.0,0.249875]
[1727631033494,0.000828,65999.0,65998.0,0.249875]
[1727631033733,0.000828,65999.0,65998.0,0.25290503]
[1727631034461,0.000828,65999.0,65998.0,0.33290503]
[1727631034694,0.000828,65999.0,65998.0,0.329875]
[1727631036533,0.02457575,65999.0,65998.0,0.329875]
[1727631036969,0.000828,65999.0,65998.0,0.329875]
[1727631039039,0.000828,65999.0,65998.0,0.45487682]
[1727631039512,0.000828,65999.0,65998.0,0.50816294]
[1727631039736,0.000828,65999.0,65998.0,0.50616294]
[1727631040165,0.000828,65999.0,65998.0,0.51116294]
[1727631040623,0.000828,65999.0,65998.0,0.51016294]
[1727631040868,0.000828,65999.0,65998.0,0.51416294]
[1727631041353,0.000828,65999.0,65998.0,0.51016294]
[1727631041601,0.000828,65999.0,65998.0,0.50516294]
[1727631041845,0.000828,65999.0,65998.0,0.51816294]
[1727631042315,0.000828,65999.0,65998.0,0.52716294]
[1727631042795,0.000828,65999.0,65998.0,0.51816294]
[1727631043040,0.000828,65999.0,65998.0,0.53216294]
[1727631045985,0.000828,65999.0,65998.0,0.98672294]
[1727631046411,0.000828,65999.0,65998.0,0.97272294]
[1727631046630,0.001828,65999.0,65998.0,0.97272294]
[1727631046846,0.001828,65999.0,65998.0,0.97172294]
[1727631047501,0.000828,65999.0,65998.0,0.95972294]
[1727631047813,0.001828,65999.0,65998.0,0.97172294]
[1727631048261,0.002828,65999.0,65998.0,0.98472294]
[1727631050574,0.002828,65999.0,65998.0,0.98467488]
[1727631054532,0.000828,65999.0,65998.0,0.95967488]
[1727631055021,0.000828,65999.0,65998.0,0.97267488]
[1727631056249,0.000828,65999.0,65998.0,0.98467488]
[1727631067489,0.000828,65999.0,65998.0,1.14306294]
[1727631067722,0.000828,65999.0,65998.0,1.24306294]
[1727631068394,0.000828,65999.0,65998.0,1.28823356]
[1727631068615,0.000828,65999.0,65998.0,1.21806294]
[1727631068852,0.000828,65999.0,65998.0,1.27523356]
[1727631069085,0.000828,65999.0,65998.0,1.28923356]
[1727631069318,0.000828,65999.0,65998.0,1.23206294]
[1727631069535,0.000828,65999.0,65998.0,1.27724765]
[1727631069754,0.000828,65999.0,65998.0,1.29124765]
[1727631070190,0.000828,65999.0,65998.0,1.21806294]
[1727631070408,0.000828,65999.0,65998.0,1.24606294]
[1727631070625,0.000828,65999.0,65998.0,1.2912467]
[1727631070892,0.000828,65999.0,65998.0,1.2772467]
[1727631071123,0.000828,65999.0,65998.0,1.45653268]
[1727631071347,0.001656,66004.0,65998.0,1.45653268]
[1727631071348,0.001656,66004.0,66003.0,0.325608]
[1727631071574,0.001656,66004.0,66003.0,0.95841594]
[1727631071809,0.001656,66004.0,66003.0,1.02616992]
[1727631072282,0.001656,66004.0,66003.0,1.23623488]
[1727631072498,0.001656,66004.0,66003.0,0.95841594]
[1727631072742,0.001656,66004.0,66003.0,1.33470696]
[1727631072975,0.001656,66004.0,66003.0,1.4250456]
[1727631073192,0.001656,66004.0,66003.0,1.33470696]
[1727631073684,0.001656,66004.0,66003.0,1.43602995]
[1727631073904,0.001656,66004.0,66003.0,1.43970696]
[1727631074120,0.001656,66004.0,66003.0,1.56663026]
[1727631074342,0.001656,66004.0,66003.0,1.45370696]
[1727631074559,0.001656,66004.0,66003.0,1.55259862]
[1727631074820,0.001656,66004.0,66003.0,1.56659862]
[1727631075047,0.001656,66004.0,66003.0,1.55659862]
[1727631075287,0.001656,66004.0,66003.0,1.45770696]
[1727631075542,0.001656,66004.0,66003.0,1.57059852]
[1727631075771,0.001656,66004.0,66003.0,1.55659852]
[1727631076019,0.001656,66004.0,66003.0,1.57059852]
[1727631076247,0.001656,66004.0,66003.0,1.45770696]
[1727631076946,0.001656,66004.0,66003.0,1.46270696]
[1727631077177,0.001656,66004.0,66003.0,1.46770696]
[1727631079579,0.001656,66004.0,66003.0,1.46929482]
[1727631086380,0.001656,66009.0,66008.0,0.276496]
[1727631086582,0.001656,66009.0,66008.0,1.02028092]
[1727631087198,0.001656,66009.0,66008.0,0.95255504]
[1727631087620,0.001656,66009.0,66008.0,0.96655504]
[1727631087836,0.001656,66009.0,66008.0,0.98055504]
[1727631091818,0.00044975,66009.0,66008.0,0.98055504]
[1727631092465,0.00044975,66009.0,66008.0,1.02369324]
[1727631092886,0.00044975,66009.0,66008.0,0.97855504]
[1727631093115,0.00044975,66009.0,66008.0,1.02369328]
[1727631093337,0.00044975,66009.0,66008.0,1.02569328]
[1727631093564,0.00044975,66009.0,66008.0,1.02369328]
[1727631093828,0.00044975,66009.0,66008.0,0.81227394]
[1727631094075,0.07884975,66009.0,66008.0,0.633986]
[1727631094285,0.17534975,66009.0,66008.0,0.633986]
[1727631094727,0.17534975,66009.0,66008.0,0.619986]
[1727631094953,0.17534975,66009.0,66008.0,0.605986]
[1727631095173,0.17534975,66009.0,66008.0,0.619986]
[1727631095393,0.17534975,66009.0,66008.0,0.628986]
[1727631095602,0.17534975,66009.0,66008.0,0.639986]
[1727631096261,0.17534975,66009.0,66008.0,0.649986]
[1727631096705,0.17534975,66009.0,66008.0,0.639986]
[1727631097142,0.17534975,66009.0,66008.0,0.649986]
[1727631101115,0.17534975,66009.0,66008.0,0.8058857]
[1727631101624,0.17534975,66009.0,66008.0,0.651642]
[1727631115229,0.17516742,66009.0,66008.0,0.651642]
[1727631137240,0.00026742,66009.0,66008.0,0.651642]
[1727631144689,0.00026742,66009.0,66008.0,0.69696966]
[1727631145120,0.00026742,66009.0,66008.0,0.68696966]
[1727631145351,0.00026742,66009.0,66008.0,0.646642]
[1727631145567,0.00026742,66009.0,66008.0,0.635642]
[1727631145778,0.00026742,66009.0,66008.0,0.641642]
[1727631145980,0.00026742,66009.0,66008.0,0.636642]
[1727631146222,0.00026742,66009.0,66008.0,0.637642]
[1727631146451,0.00026742,66009.0,66008.0,0.69096966]
[1727631146856,0.00026742,66009.0,66008.0,0.645642]
[1727631148506,0.00026742,66009.0,66008.0,0.69096966]
[1727631149354,0.00026742,66009.0,66008.0,0.6909824]
[1727631150718,0.00026742,66009.0,66008.0,0.645642]
[1727631150945,0.00026742,66009.0,66008.0,0.6909824]
[1727631151162,0.00026742,66009.0,66008.0,0.645642]
[1727631151369,0.00026742,66009.0,66008.0,0.638642]
[1727631151578,0.00026742,66009.0,66008.0,0.645642]
[1727631151784,0.00026742,66009.0,66008.0,0.637642]
[1727631151992,0.00026742,66009.0,66008.0,0.630642]
[1727631152201,0.00026742,66009.0,66008.0,0.639642]
[1727631152434,0.00026742,66009.0,66008.0,0.647642]
[1727631159282,0.00026742,66009.0,66008.0,0.69298043]
[1727631159735,0.00026742,66009.0,66008.0,0.647642]
[1727631159971,0.00026742,66009.0,66008.0,0.82019782]
[1727631160195,0.00026742,66009.0,66008.0,0.84936564]
[1727631160461,0.00026742,66009.0,66008.0,0.80403006]
[1727631160934,0.00026742,66009.0,66008.0,0.84936401]
[1727631161168,0.00026742,66009.0,66008.0,0.80403006]
[1727631161400,0.00026742,66009.0,66008.0,0.647642]
[1727631163986,0.00026742,66009.0,66008.0,0.69297805]
[1727631164215,0.00026742,66009.0,66008.0,0.647642]
[1727631166477,0.00026742,66009.0,66008.0,0.69297805]
[1727631167153,0.00026742,66009.0,66008.0,0.647642]
[1727631167777,0.00026742,66009.0,66008.0,0.69297805]
[1727631168268,0.00026742,66009.0,66008.0,0.647642]
[1727631168918,0.00026742,66009.0,66008.0,0.69297805]
[1727631169131,0.00026742,66009.0,66008.0,0.647642]
[1727631171776,0.00026742,66009.0,66008.0,0.69297805]
[1727631171987,0.00026742,66009.0,66008.0,0.647642]
[1727631172196,0.00026742,66009.0,66008.0,0.69297805]
[1727631172640,0.00026742,66009.0,66008.0,0.647642]
[1727631173524,0.00026742,66009.0,66008.0,0.69297805]
[1727631173746,0.00026742,66009.0,66008.0,0.69297579]
[1727631174894,0.00026742,66009.0,66008.0,0.66396712]
[1727631175110,0.00026742,66009.0,66008.0,0.69297546]
[1727631175565,0.00026742,66009.0,66008.0,0.647642]
[1727631181526,0.00026742,66009.0,66008.0,0.638642]
[1727631181721,0.00026742,66009.0,66008.0,0.639642]
[1727631182285,0.00026742,66009.0,66008.0,0.638642]
[1727631182540,0.00026742,66009.0,66008.0,0.640642]
[1727631183005,0.00026742,66009.0,66008.0,0.649642]
[1727631187632,0.00026742,66009.0,66008.0,0.71137514]
[1727631190351,0.00026742,66009.0,66008.0,0.6660287]
[1727631190834,0.00026742,66009.0,66008.0,0.649642]
[1727631205442,0.00026742,66009.0,66008.0,0.69500661]
[1727631205672,0.00026742,66009.0,66008.0,0.80603006]
[1727631206310,0.00026742,66009.0,66008.0,0.85139999]
[1727631206541,0.00026742,66009.0,66008.0,0.85139954]
[1727631207001,0.00026742,66009.0,66008.0,0.84239954]
[1727631207212,0.00026742,66009.0,66008.0,0.85239954]
[1727631207427,0.00026742,66009.0,66008.0,0.84239954]
[1727631207611,0.00026742,66009.0,66008.0,0.68601148]
[1727631207886,0.00026742,66009.0,66008.0,0.69701148]
[1727631210985,0.00026742,66009.0,66008.0,0.651642]
[1727631211726,0.00026742,66009.0,66008.0,0.69701148]
[1727631212735,0.00026742,66009.0,66008.0,0.651642]
[1727631213181,0.00026742,66009.0,66008.0,0.6970189]
[1727631213414,0.00026742,66009.0,66008.0,0.651642]
[1727631213630,0.00026742,66009.0,66008.0,0.69701907]
[1727631213856,0.00026742,66009.0,66008.0,0.651642]
[1727631214312,0.00026742,66009.0,66008.0,0.71968892]
[1727631214529,0.00026742,66009.0,66008.0,0.69701834]
[1727631214755,0.00026742,66009.0,66008.0,0.69701874]
[1727631215207,0.00026742,66009.0,66008.0,0.93166259]
[1727631215433,0.00026742,66009.0,66008.0,0.651642]
[1727631215652,0.00026742,66009.0,66008.0,0.69702008]
[1727631215888,0.00026742,66009.0,66008.0,0.651642]
[1727631216092,0.00026742,66009.0,66008.0,0.6970206]
[1727631216973,0.00026742,66009.0,66008.0,0.651642]
[1727631217186,0.00026742,66009.0,66008.0,0.69701965]
[1727631217407,0.00026742,66009.0,66008.0,0.651642]
[1727631218025,0.00026742,66009.0,66008.0,0.6970198]
[1727631218445,0.00026742,66009.0,66008.0,0.651642]
[1727631218648,0.00026742,66009.0,66008.0,0.69701904]
[1727631218859,0.00026742,66009.0,66008.0,0.6970209]
[1727631219067,0.00026742,66009.0,66008.0,0.651642]
[1727631219525,0.00026742,66009.0,66008.0,0.69702121]
[1727631219708,0.00026742,66009.0,66008.0,0.651642]
[1727631220163,0.00026742,66009.0,66008.0,0.69702202]
[1727631220393,0.00026742,66009.0,66008.0,0.6970209]
[1727631220668,0.09622342,66013.0,66008.0,0.5455249]
[1727631220921,0.09622342,66013.0,66012.0,0.174487]
[1727631222369,0.09622342,66013.0,66012.0,0.181487]
[1727631223850,0.09622342,66013.0,66012.0,0.187487]
[1727631224061,0.1788,66020.0,66019.0,0.151471]
[1727631224267,0.18755323,66020.0,66019.0,0.151471]
[1727631231011,0.21129525,66020.0,66019.0,0.151471]
[1727631231626,0.21129525,66020.0,66019.0,0.154471]
[1727631232632,0.11249525,66020.0,66019.0,0.154471]
[1727631232843,0.03249525,66020.0,66019.0,0.154471]
[1727631233335,0.03249525,66020.0,66019.0,0.152471]
[1727631233528,0.03332325,66020.0,66019.0,0.151471]
[1727631234394,0.12922325,66020.0,66019.0,0.151471]
[1727631234872,0.12922325,66020.0,66019.0,0.152471]
[1727631235115,0.12922325,66020.0,66019.0,0.15131793]
[1727631235964,0.10548123,66020.0,66019.0,0.15131793]
[1727631240727,0.12922356,66020.0,66019.0,0.15131793]
[1727631242539,0.03332356,66020.0,66019.0,0.15131793]
[1727631246131,0.00958123,66020.0,66019.0,0.15131793]
[1727631250467,0.03332345,66020.0,66019.0,0.15131793]
[1727631255920,0.03270145,66020.0,66019.0,0.15031793]
[1727631256129,0.00895923,66020.0,66019.0,0.15031793]
[1727631257986,0.05447382,66020.0,66019.0,0.15031793]
[1727631258211,0.05447382,66020.0,66019.0,0.15197393]
[1727631262784,0.09998842,66020.0,66019.0,0.15197393]
[1727631263219,0.00895923,66020.0,66019.0,0.15197393]
[1727631263433,0.09998899,66020.0,66019.0,0.15197393]
[1727631264292,0.00995923,66020.0,66019.0,0.15197393]
[1727631264983,0.00895923,66020.0,66019.0,0.15197393]
[1727631265185,0.15905595,66020.0,66019.0,0.15197393]
[1727631265414,0.15905595,66020.0,66019.0,0.001656]
[1727631266372,0.22730727,66020.0,66019.0,0.001656]
[1727631266590,0.15905595,66020.0,66019.0,0.001656]
[1727631268948,0.22729694,66020.0,66019.0,0.001656]
[1727631269169,0.37876594,66020.0,66019.0,0.001656]
[1727631269411,0.40250868,66020.0,66019.0,0.001656]
[1727631271755,0.34831196,66020.0,66019.0,0.001656]
[1727631272044,0.36037097,66020.0,66019.0,0.001656]
[1727631273189,0.20890197,66020.0,66019.0,0.001656]
[1727631273923,0.36037097,66020.0,66019.0,0.001656]
[1727631274660,0.20890197,66020.0,66019.0,0.001656]
[1727631276053,0.2771173,66020.0,66019.0,0.153127]
[1727631276292,0.40484356,66020.0,66019.0,0.001656]
[1727631276538,0.25337456,66020.0,66019.0,0.001656]
[1727631277966,0.25336981,66020.0,66019.0,0.001656]
[1727631280868,0.27711271,66020.0,66019.0,0.001656]
[1727631281751,0.27711271,66020.0,66019.0,0.153127]
[1727631282205,0.27711271,66020.0,66019.0,0.001656]
[1727631282862,0.27710792,66020.0,66019.0,0.001656]
[1727631284150,0.27710792,66020.0,66019.0,0.153127]
[1727631286151,0.25336502,66020.0,66019.0,0.153127]
[1727631287756,0.25336526,66020.0,66019.0,0.153127]
[1727631289041,0.23063035,66020.0,66019.0,0.153127]
[1727631292767,0.23063367,66020.0,66019.0,0.153127]
[1727631294235,0.18515923,66020.0,66019.0,0.153127]
[1727631296365,0.24618852,66020.0,66019.0,0.153127]
[1727631298230,0.18515923,66020.0,66019.0,0.153127]
[1727631299525,0.09025923,66020.0,66019.0,0.153127]
[1727631300621,0.00995923,66020.0,66019.0,0.153127]
[1727631300841,0.07918856,66020.0,66019.0,0.176127]
[1727631301087,0.0337018,66020.0,66019.0,0.350627]
[1727631301598,0.02557057,66020.0,66019.0,0.350627]
[1727631302100,0.02457057,66020.0,66019.0,0.805037]
[1727631302353,0.02457057,66020.0,66019.0,0.812037]
[1727631303077,0.000828,66020.0,66019.0,0.812037]
[1727631303821,0.000828,66020.0,66019.0,0.96732494]
[1727631309259,0.000828,66020.0,66019.0,1.123713]
[1727631309513,0.000828,66020.0,66019.0,0.96732494]
[1727631315769,0.000828,66020.0,66019.0,0.88442494]
[1727631317973,0.084756,66029.0,66019.0,0.73295394]
[1727631318194,0.084756,66029.0,66028.0,0.17445]
[1727631322674,0.10849467,66029.0,66028.0,0.17445]
[1727631323121,0.084756,66029.0,66028.0,0.17445]
[1727631324004,0.09278746,66029.0,66028.0,0.17445]
[1727631324516,0.074756,66029.0,66028.0,0.17445]
[1727631325163,0.08278746,66029.0,66028.0,0.17445]
[1727631327106,0.074756,66029.0,66028.0,0.17445]
[1727631327314,0.08278746,66029.0,66028.0,0.17445]
[1727631329793,0.08361546,66029.0,66028.0,0.17445]
[1727631330187,0.10735413,66029.0,66028.0,0.17445]
[1727631330847,0.09932267,66029.0,66028.0,0.17445]
[1727631331242,0.10733743,66029.0,66028.0,0.17445]
[1727631331688,0.09932267,66029.0,66028.0,0.17445]
[1727631332121,0.10733743,66029.0,66028.0,0.17445]
[1727631332335,0.09932267,66029.0,66028.0,0.17445]
[1727631332553,0.10733743,66029.0,66028.0,0.17445]
[1727631333251,0.075584,66029.0,66028.0,0.17445]
[1727631333469,0.08359876,66029.0,66028.0,0.17445]
[1727631333689,0.075584,66029.0,66028.0,0.17445]
[1727631333910,0.075584,66029.0,66028.0,0.17645]
[1727631334126,0.08359876,66029.0,66028.0,0.17745]
[1727631337166,0.075584,66029.0,66028.0,0.17745]
[1727631337390,0.08359876,66029.0,66028.0,0.17745]
[1727631337813,0.00884276,66029.0,66028.0,0.17745]
[1727631340901,0.00884276,66029.0,66028.0,0.15445]
[1727631342490,0.00884276,66029.0,66028.0,0.156106]
[1727631347017,0.00884276,66029.0,66028.0,0.155106]
[1727631347229,0.00884276,66029.0,66028.0,0.153106]
[1727631347670,0.00884276,66029.0,66028.0,0.156106]
[1727631349050,0.00884276,66029.0,66028.0,0.157106]
[1727631349464,0.00884276,66029.0,66028.0,0.156106]
[1727631349904,0.00884276,66029.0,66028.0,0.158106]
[1727631361414,0.03258162,66029.0,66028.0,0.158106]
[1727631362289,0.03258162,66029.0,66028.0,0.006656]
[1727631362290,0.2478795,66029.0,66028.0,0.006656]
[1727631362535,0.20668162,66029.0,66028.0,0.006656]
[1727631362748,0.20668162,66029.0,66028.0,0.158106]
[1727631362749,0.29769015,66029.0,66028.0,0.158106]
[1727631362983,0.20668162,66029.0,66028.0,0.006656]
[1727631363163,0.27394802,66029.0,66028.0,0.006656]
[1727631364283,0.27394802,66029.0,66028.0,0.158106]
[1727631365349,0.25118638,66029.0,66028.0,0.158106]
[1727631366043,0.25118621,66029.0,66028.0,0.158106]
[1727631366281,0.25118461,66029.0,66028.0,0.158106]
[1727631366497,0.18294276,66029.0,66028.0,0.158106]
[1727631367546,0.25118219,66029.0,66028.0,0.158106]
[1727631367969,0.18294276,66029.0,66028.0,0.158106]
[1727631368829,0.2511796,66029.0,66028.0,0.158106]
[1727631369269,0.2511796,66029.0,66028.0,0.156106]
[1727631369487,0.2511796,66029.0,66028.0,0.153106]
[1727631372608,0.25117587,66029.0,66028.0,0.153106]
[1727631373485,0.18294276,66029.0,66028.0,0.153106]
[1727631374406,0.08884276,66029.0,66028.0,0.153106]
[1727631374626,0.15707587,66029.0,66028.0,0.153106]
[1727631375503,0.07707587,66029.0,66028.0,0.153106]
[1727631376804,0.00884276,66029.0,66028.0,0.153106]
[1727631377236,0.07707587,66029.0,66028.0,0.153106]
[1727631377907,0.07707587,66029.0,66028.0,0.155106]
[1727631378784,0.07707587,66029.0,66028.0,0.156106]
[1727631380603,0.07707062,66029.0,66028.0,0.156106]
[1727631382127,0.10081042,66029.0,66028.0,0.156106]
[1727631383458,0.07707062,66029.0,66028.0,0.156106]
[1727631387235,0.07706747,66029.0,66028.0,0.156106]
[1727631392126,0.1008059,66029.0,66028.0,0.156106]
[1727631392363,0.032582,66029.0,66028.0,0.156106]
[1727631392841,0.0780641,66029.0,66028.0,0.156106]
[1727631393360,0.05432486,66029.0,66028.0,0.156106]
[1727631393633,0.05432486,66029.0,66028.0,0.179106]
[1727631393900,0.05432486,66029.0,66028.0,0.271506]
[1727631393901,0.00884276,66029.0,66028.0,0.271506]
[1727631394615,0.00878711,66029.0,66028.0,0.271506]
[1727631395110,0.000828,66029.0,66028.0,0.271506]
[1727631396996,0.000828,66029.0,66028.0,0.179106]
[1727631397767,0.00880726,66029.0,66028.0,0.179106]
[1727631399495,0.00880726,66029.0,66028.0,0.176106]
[1727631399722,0.00880726,66029.0,66028.0,0.181106]
[1727631399958,0.00880726,66029.0,66028.0,0.187106]
[1727631401141,0.03254619,66029.0,66028.0,0.187106]
[1727631405798,0.03254619,66029.0,66028.0,0.641456]
[1727631406051,0.00880726,66029.0,66028.0,0.641456]
[1727631406310,0.000828,66029.0,66028.0,0.641456]
[1727631407509,0.00877293,66029.0,66028.0,0.641456]
[1727631410564,0.03251203,66029.0,66028.0,0.641456]
[1727631412982,0.00877293,66029.0,66028.0,0.641456]
[1727631413673,0.00877293,66029.0,66028.0,0.640456]
[1727631414758,0.00877293,66029.0,66028.0,0.629456]
[1727631414973,0.00877293,66029.0,66028.0,0.632456]
[1727631415184,0.00877293,66029.0,66028.0,0.634456]
[1727631415394,0.00877293,66029.0,66028.0,0.631456]
[1727631415614,0.00877293,66029.0,66028.0,0.632456]
[1727631416056,0.00877293,66029.0,66028.0,0.634456]
[1727631421009,0.03251197,66029.0,66028.0,0.634456]
[1727631423230,0.03232997,66029.0,66028.0,0.634456]
[1727631423460,0.00859093,66029.0,66028.0,0.634456]
[1727631432018,0.03233005,66029.0,66028.0,0.634456]
[1727631434014,0.00859093,66029.0,66028.0,0.634456]
[1727631437962,0.05408234,66029.0,66028.0,0.634456]
[1727631439279,0.05410498,66029.0,66028.0,0.634456]
[1727631441738,0.07784409,66029.0,66028.0,0.634456]
[1727631441968,0.07784409,66029.0,66028.0,0.631456]
[1727631442206,0.07784409,66029.0,66028.0,0.638456]
[1727631442443,0.07784409,66029.0,66028.0,0.636456]
[1727631442689,0.07784409,66029.0,66028.0,0.641456]
[1727631443158,0.07784409,66029.0,66028.0,0.636456]
[1727631443419,0.05410498,66029.0,66028.0,0.636456]
[1727631443651,0.05410498,66029.0,66028.0,0.642456]
[1727631444136,0.0541063,66029.0,66028.0,0.642456]
[1727631444414,0.0541063,66029.0,66028.0,0.636456]
[1727631444634,0.0541063,66029.0,66028.0,0.629456]
[1727631444867,0.0541063,66029.0,66028.0,0.632456]
[1727631445794,0.0541063,66029.0,66028.0,0.634456]
[1727631446256,0.0541063,66029.0,66028.0,0.632456]
[1727631446705,0.0541063,66029.0,66028.0,0.634456]
[1727631449121,0.05410658,66029.0,66028.0,0.634456]
[1727631453775,0.05410837,66029.0,66028.0,0.634456]
[1727631458790,0.05410904,66029.0,66028.0,0.634456]
[1727631463583,0.05410958,66029.0,66028.0,0.634456]
[1727631468627,0.0541105,66029.0,66028.0,0.634456]
[1727631470894,0.07784982,66029.0,66028.0,0.634456]
[1727631471609,0.03233025,66029.0,66028.0,0.634456]
[1727631471846,0.07784982,66029.0,66028.0,0.634456]
[1727631473245,0.03233025,66029.0,66028.0,0.634456]
[1727631473458,0.0541087,66029.0,66028.0,0.634456]
[1727631473704,0.04616377,66029.0,66028.0,0.634456]
[1727631473934,0.00732093,66029.0,66028.0,0.634456]
[1727631475631,0.07559759,66029.0,66028.0,0.634456]
[1727631477741,0.00732093,66029.0,66028.0,0.634456]
[1727631482112,0.03106009,66029.0,66028.0,0.634456]
[1727631484010,0.00732093,66029.0,66028.0,0.634456]
[1727631487355,0.03106015,66029.0,66028.0,0.634456]
[1727631487652,0.00732093,66029.0,66028.0,0.634456]
[1727631491023,0.03106013,66029.0,66028.0,0.634456]
[1727631492598,0.07656855,66029.0,66028.0,0.634456]
[1727631493106,0.03106013,66029.0,66028.0,0.634456]
[1727631493332,0.00732093,66029.0,66028.0,0.634456]
[1727631496485,0.03106011,66029.0,66028.0,0.634456]
[1727631497635,0.00732093,66029.0,66028.0,0.634456]
[1727631497849,0.05282956,66029.0,66028.0,0.634456]
[1727631498389,0.0528293,66029.0,66028.0,0.634456]
[1727631500860,0.00732093,66029.0,66028.0,0.634456]
[1727631501540,0.05282904,66029.0,66028.0,0.634456]
[1727631503301,0.05264676,66029.0,66028.0,0.634456]
[1727631505313,0.0763858,66029.0,66028.0,0.634456]
[1727631506437,0.03087769,66029.0,66028.0,0.634456]
[1727631513580,0.07638479,66029.0,66028.0,0.611456]
[1727631513856,0.10857769,66029.0,66028.0,0.634456]
[1727631514076,0.17683834,66029.0,66028.0,0.634456]
[1727631514730,0.1530993,66029.0,66028.0,0.634456]
[1727631515183,0.1303452,66029.0,66028.0,0.634456]
[1727631515396,0.13034536,66029.0,66028.0,0.634456]
[1727631519646,0.08483865,66029.0,66028.0,0.629456]
[1727631519957,0.08483865,66029.0,66028.0,0.635456]
[1727631521253,0.08483865,66029.0,66028.0,0.629456]
[1727631521512,0.08483865,66029.0,66028.0,0.636456]
[1727631524161,0.00713865,66029.0,66028.0,0.636456]
[1727631526544,0.09914108,66029.0,66028.0,0.636456]
[1727631527032,0.03087784,66029.0,66028.0,0.636456]
[1727631529359,0.07638601,66029.0,66028.0,0.636456]
[1727631530010,0.03087784,66029.0,66028.0,0.636456]
[1727631530458,0.07638618,66029.0,66028.0,0.636456]
[1727631531100,0.05264699,66029.0,66028.0,0.636456]
[1727631532637,0.00713865,66029.0,66028.0,0.636456]
[1727631533123,0.05264699,66029.0,66028.0,0.636456]
[1727631533367,0.00713865,66029.0,66028.0,0.636456]
[1727631533597,0.05264699,66029.0,66028.0,0.636456]
[1727631534168,0.00713865,66029.0,66028.0,0.636456]
[1727631541572,0.05264409,66029.0,66028.0,0.636456]
[1727631542060,0.00713865,66029.0,66028.0,0.636456]
[1727631542287,0.05264409,66029.0,66028.0,0.636456]
[1727631542781,0.05264409,66029.0,66028.0,0.632456]
[1727631542999,0.07638271,66029.0,66028.0,0.632456]
[1727631543215,0.07638271,66029.0,66028.0,0.636456]
[1727631543424,0.07638271,66029.0,66028.0,0.631456]
[1727631543639,0.07638271,66029.0,66028.0,0.628456]
[1727631544079,0.05264368,66029.0,66028.0,0.628456]
[1727631544297,0.05264368,66029.0,66028.0,0.632556]
[1727631544511,0.05264368,66029.0,66028.0,0.635556]
[1727631544964,0.05264368,66029.0,66028.0,0.632456]
[1727631545180,0.05264368,66029.0,66028.0,0.631656]
[1727631545396,0.05264368,66029.0,66028.0,0.635556]
[1727631545800,0.05264368,66029.0,66028.0,0.635456]
[1727631546013,0.05264368,66029.0,66028.0,0.634956]
[1727631546231,0.05264368,66029.0,66028.0,0.634856]
[1727631546664,0.05264368,66029.0,66028.0,0.634456]
[1727631546905,0.05264368,66029.0,66028.0,0.633956]
[1727631547122,0.05264368,66029.0,66028.0,0.633856]
[1727631547591,0.05264368,66029.0,66028.0,0.633456]
[1727631547817,0.05264399,66029.0,66028.0,0.633456]
[1727631548684,0.07638295,66029.0,66028.0,0.633456]
[1727631548918,0.05264399,66029.0,66028.0,0.633456]
[1727631551846,0.07638297,66029.0,66028.0,0.633456]
[1727631553007,0.05264399,66029.0,66028.0,0.633456]
[1727631554589,0.05264399,66029.0,66028.0,0.635112]
[1727631555676,0.00713865,66029.0,66028.0,0.635112]
[1727631560255,0.03087783,66029.0,66028.0,0.635112]
[1727631561475,0.00713865,66029.0,66028.0,0.635112]
[1727631567714,0.0526437,66029.0,66028.0,0.635112]
[1727631570225,0.07638313,66029.0,66028.0,0.635112]
[1727631571256,0.12188819,66029.0,66028.0,0.635112]